bitfinex/quotes_BTCUSD_20250328
["timestamp","ask_amount","ask_price","bid_price","bid_amount"]
[1743152488504,0.246068,85342.0,85341.0,7.4e-07]
[1743152489804,0.247068,85342.0,85341.0,7.4e-07]
[1743152490231,0.247068,85342.0,85341.0,0.00400074]
[1743152490438,0.246068,85342.0,85341.0,7.4e-07]
[1743152491692,0.246068,85342.0,85341.0,0.11425838]
[1743152492025,0.246068,85342.0,85341.0,0.11625838]
[1743152497973,0.27924543,85342.0,85341.0,0.11625838]
[1743152500632,0.27958363,85342.0,85341.0,0.11625838]
[1743152500902,0.03351563,85342.0,85341.0,0.11625838]
[1743152501132,0.03351563,85342.0,85341.0,0.36232838]
[1743152501343,0.03351563,85342.0,85341.0,0.59202923]
[1743152501541,0.03351563,85342.0,85341.0,0.63742923]
[1743152501744,0.03351563,85342.0,85341.0,0.67394971]
[1743152502203,0.03451563,85342.0,85341.0,0.67394971]
[1743152502563,0.03351563,85342.0,85341.0,0.67394971]
[1743152502819,0.03351563,85342.0,85341.0,0.67194971]
[1743152503020,0.03451563,85342.0,85341.0,0.67694971]
[1743152503265,0.03451563,85342.0,85341.0,0.67194971]
[1743152503671,0.03551563,85342.0,85341.0,0.67694971]
[1743152504214,0.03551563,85342.0,85341.0,0.64042923]
[1743152504608,0.03551563,85342.0,85341.0,0.67695585]
[1743152506814,0.03551563,85342.0,85341.0,0.97695585]
[1743152507418,0.03551563,85342.0,85341.0,0.84299585]
[1743152507560,0.03551563,85342.0,85341.0,0.97695585]
[1743152507759,0.03551563,85342.0,85341.0,0.97195585]
[1743152507959,0.03351563,85342.0,85341.0,0.97195585]
[1743152508159,0.03451563,85342.0,85341.0,0.97695585]
[1743152508371,0.03551563,85342.0,85341.0,0.98195585]
[1743152508819,0.03551563,85342.0,85341.0,0.97695585]
[1743152508820,0.03451563,85342.0,85341.0,0.97695585]
[1743152509030,0.03551563,85342.0,85341.0,0.98195585]
[1743152511099,0.03551563,85342.0,85341.0,0.84799585]
[1743152511271,0.03551563,85342.0,85341.0,0.395138]
[1743152511476,0.03551563,85342.0,85341.0,0.540815]
[1743152512583,0.03551563,85342.0,85341.0,0.406855]
[1743152512783,0.03551563,85342.0,85341.0,0.540815]
[1743152515304,0.03551563,85342.0,85341.0,1.098495]
[1743152515687,0.03551563,85342.0,85341.0,1.086778]
[1743152518407,0.03551563,85342.0,85341.0,1.086738]
[1743152519797,0.03551563,85342.0,85341.0,1.098455]
[1743152520002,0.03551563,85342.0,85341.0,0.852385]
[1743152520199,0.26986663,85342.0,85341.0,0.852385]
[1743152520418,0.03551563,85342.0,85341.0,0.852385]
[1743152520915,0.03551563,85342.0,85341.0,1.086738]
[1743152521113,0.03551563,85342.0,85341.0,1.098455]
[1743152521338,0.03551563,85342.0,85341.0,1.086738]
[1743152521697,0.03551563,85342.0,85341.0,0.852385]
[1743152522034,0.26986663,85342.0,85341.0,0.81585838]
[1743152522382,0.03551563,85342.0,85341.0,0.81585838]
[1743152522730,0.03551563,85342.0,85341.0,1.06192838]
[1743152523231,0.03551563,85342.0,85341.0,1.09850399]
[1743152529368,0.03551563,85342.0,85341.0,0.71851399]
[1743152529576,0.28158363,85342.0,85341.0,0.85243399]
[1743152529781,0.28158363,85342.0,85341.0,0.81585838]
[1743152530195,0.03551563,85342.0,85341.0,0.81585838]
[1743152530388,0.03551563,85342.0,85341.0,1.06192838]
[1743152530694,0.03351563,85342.0,85341.0,1.07682073]
[1743152530888,0.03451563,85342.0,85341.0,1.08782073]
[1743152531027,0.03451563,85342.0,85341.0,0.84746773]
[1743152531441,0.03351563,85342.0,85341.0,0.71354773]
[1743152531647,0.26786663,85342.0,85341.0,0.85246773]
[1743152532705,0.26786663,85342.0,85341.0,1.08682073]
[1743152532706,0.03351563,85342.0,85341.0,1.08682073]
[1743152534014,0.03351563,85342.0,85341.0,1.09853773]
[1743152535241,0.26786663,85342.0,85341.0,0.85246773]
[1743152535440,0.03351563,85342.0,85341.0,0.86418473]
[1743152535648,0.03351563,85342.0,85341.0,1.09853773]
[1743152539308,0.03351563,85342.0,85341.0,1.08682073]
[1743152542359,0.03351563,85342.0,85341.0,0.85246773]
[1743152542724,0.03351563,85342.0,85341.0,1.08682073]
[1743152544118,0.26786663,85342.0,85341.0,0.85246773]
[1743152544326,0.27958363,85342.0,85341.0,0.85246773]
[1743152544653,0.35788363,85342.0,85341.0,0.85246773]
[1743152545075,0.35788363,85342.0,85341.0,0.71854773]
[1743152551474,0.27958363,85342.0,85341.0,0.71854773]
[1743152556218,0.27958363,85342.0,85341.0,0.68193838]
[1743152559664,0.27958363,85342.0,85341.0,0.67693838]
[1743152560245,0.27958363,85342.0,85341.0,0.68093838]
[1743152561412,0.32868363,85342.0,85341.0,0.68093838]
[1743152561810,0.32868363,85342.0,85341.0,0.56668074]
[1743152561811,0.35604015,85342.0,85341.0,0.56668074]
[1743152561962,0.43654015,85342.0,85341.0,0.56668074]
[1743152562382,0.43654015,85342.0,85341.0,0.00900074]
[1743152562833,0.43654015,85342.0,85341.0,0.00400074]
[1743152563417,0.43654015,85342.0,85341.0,0.00700074]
[1743152563575,0.43654015,85342.0,85341.0,0.00300074]
[1743152563783,0.43654015,85342.0,85341.0,0.00200074]
[1743152564002,0.43654015,85342.0,85341.0,0.00400074]
[1743152565277,0.40918363,85342.0,85341.0,0.00400074]
[1743152565838,0.40918363,85342.0,85341.0,0.20400074]
[1743152567231,0.27958363,85342.0,85341.0,0.20400074]
[1743152568852,0.27958363,85342.0,85341.0,0.31825838]
[1743152587943,0.27190177,85342.0,85341.0,0.31825838]
[1743152589502,0.02583377,85342.0,85341.0,0.31825838]
[1743152589720,0.02583377,85342.0,85341.0,0.717341]
[1743152589921,0.02583377,85342.0,85341.0,0.75395455]
[1743152590941,0.02583377,85342.0,85341.0,0.75195455]
[1743152591351,0.02583377,85342.0,85341.0,0.75695455]
[1743152591793,0.02583377,85342.0,85341.0,0.4943437]
[1743152592174,0.27190177,85342.0,85341.0,0.49475193]
[1743152592327,0.02583377,85342.0,85341.0,0.69249138]
[1743152592526,0.02583377,85342.0,85341.0,0.45813838]
[1743152592730,0.02583377,85342.0,85341.0,0.69249138]
[1743152593089,0.27190177,85342.0,85341.0,0.45813838]
[1743152593513,0.27190177,85342.0,85341.0,0.32425838]
[1743152595454,0.27190177,85342.0,85341.0,0.55861138]
[1743152595455,0.02583377,85342.0,85341.0,0.55861138]
[1743152595705,0.02583377,85342.0,85341.0,0.32425838]
[1743152595960,0.02583377,85342.0,85341.0,0.57032838]
[1743152596201,0.02583377,85342.0,85341.0,0.70256599]
[1743152598484,0.02583377,85342.0,85341.0,0.75236599]
[1743152600308,0.02583377,85342.0,85341.0,0.74064899]
[1743152600503,0.26018477,85342.0,85341.0,0.50629599]
[1743152600707,0.27190177,85342.0,85341.0,0.50629599]
[1743152600981,0.27190177,85342.0,85341.0,0.32425838]
[1743152601142,0.27190177,85342.0,85341.0,0.49468217]
[1743152601550,0.27190177,85342.0,85341.0,0.45809838]
[1743152603285,0.27190177,85342.0,85341.0,0.32425838]
[1743152605374,0.27190177,85342.0,85341.0,0.31925838]
[1743152605576,0.27190177,85342.0,85341.0,0.31425838]
[1743152605876,0.27190177,85342.0,85341.0,0.32225838]
[1743152607743,0.27190177,85342.0,85341.0,0.31425838]
[1743152607909,0.27190177,85342.0,85341.0,0.31625838]
[1743152608108,0.27190177,85342.0,85341.0,0.31825838]
[1743152620366,0.27190177,85342.0,85341.0,0.31669766]
[1743152621562,0.34800177,85342.0,85341.0,0.31669766]
[1743152622770,0.34800177,85342.0,85341.0,0.31469766]
[1743152623146,0.34800177,85342.0,85341.0,0.31569766]
[1743152623346,0.43558125,85342.0,85341.0,0.20144002]
[1743152623544,0.48308125,85342.0,85341.0,0.20144002]
[1743152624293,0.48308125,85342.0,85341.0,0.19944002]
[1743152624468,0.78308125,85342.0,85341.0,0.19944002]
[1743152624667,0.78308125,85342.0,85341.0,0.20044002]
[1743152624898,0.78308125,85342.0,85341.0,0.19944002]
[1743152625055,0.78308125,85342.0,85341.0,0.19844002]
[1743152630588,0.69550177,85342.0,85341.0,0.19844002]
[1743152631175,0.69650177,85342.0,85341.0,0.19860912]
[1743152645889,0.546093,85333.0,85332.0,1.2e-07]
[1743152647267,0.546093,85333.0,85332.0,0.00200012]
[1743152647461,0.6499198,85333.0,85332.0,0.00400012]
[1743152647892,0.6499198,85333.0,85332.0,1.2e-07]
[1743152648290,0.6499198,85333.0,85332.0,0.00100012]
[1743152648936,0.6499198,85333.0,85332.0,1.2e-07]
[1743152649140,0.6499198,85333.0,85332.0,0.00100012]
[1743152649552,0.246096,85332.0,85331.0,0.002]
[1743152649729,0.36030548,85332.0,85331.0,0.002]
[1743152650793,0.36030548,85332.0,85331.0,0.003]
[1743152651082,0.36030548,85332.0,85331.0,0.004]
[1743152654850,0.38433891,85332.0,85331.0,0.004]
[1743152655201,0.38433891,85332.0,85331.0,0.0041691]
[1743152662066,0.27012943,85332.0,85331.0,0.0041691]
[1743152662282,0.234378,85332.0,85331.0,0.0041691]
[1743152662482,0.246096,85332.0,85331.0,0.11842674]
[1743152662781,0.234376,85333.0,85331.0,0.24162674]
[1743152662976,0.246096,85332.0,85331.0,0.1273691]
[1743152663163,0.246096,85332.0,85331.0,0.24162674]
[1743152663580,0.246096,85332.0,85331.0,0.24062674]
[1743152663786,0.246096,85332.0,85331.0,0.23962674]
[1743152664080,0.246096,85332.0,85331.0,0.24062674]
[1743152664620,0.246096,85332.0,85331.0,0.23962674]
[1743152665021,0.02583377,85342.0,85336.0,0.011718]
[1743152665230,0.234358,85340.0,85338.0,0.0772]
[1743152665429,0.246075,85340.0,85339.0,0.11425764]
[1743152665665,0.26943846,85340.0,85339.0,0.11425764]
[1743152666191,0.246096,85332.0,85331.0,0.1316691]
[1743152666393,0.246096,85332.0,85331.0,0.37972674]
[1743152666597,0.246096,85332.0,85331.0,0.24392674]
[1743152666797,0.246096,85332.0,85331.0,0.25018674]
[1743152667001,0.2464342,85332.0,85331.0,0.25018674]
[1743152667881,0.2464342,85332.0,85331.0,0.25418674]
[1743152668266,0.30251698,85332.0,85331.0,0.1399291]
[1743152668469,0.30251698,85332.0,85331.0,0.1429291]
[1743152669643,0.30251698,85332.0,85331.0,0.0091691]
[1743152670868,0.30251698,85332.0,85331.0,0.0051691]
[1743152671133,0.30251698,85332.0,85331.0,0.0061691]
[1743152671338,0.30251698,85332.0,85331.0,0.0031691]
[1743152671658,0.30251698,85332.0,85331.0,0.0041691]
[1743152681094,0.2464342,85332.0,85331.0,0.0041691]
[1743152696827,0.5464342,85332.0,85331.0,1e-07]
[1743152697089,0.546134,85319.0,85318.0,9e-07]
[1743152698528,0.546134,85319.0,85318.0,3.8e-07]
[1743152698928,0.66039164,85319.0,85318.0,3.8e-07]
[1743152699325,0.68382556,85319.0,85318.0,3.8e-07]
[1743152700467,0.68482556,85319.0,85318.0,3.8e-07]
[1743152701224,0.68582556,85319.0,85318.0,3.8e-07]
[1743152701432,0.546149,85314.0,85313.0,4.8e-07]
[1743152701592,0.66040664,85314.0,85313.0,4.496e-05]
[1743152702817,0.66040664,85314.0,85313.0,0.00204496]
[1743152704350,0.546149,85314.0,85313.0,0.00204496]
[1743152705842,0.55800051,85314.0,85313.0,0.00204496]
[1743152715635,0.246149,85314.0,85313.0,0.00204496]
[1743152715828,0.246149,85314.0,85313.0,0.12694496]
[1743152716034,0.234426,85315.0,85313.0,0.2412026]
[1743152716296,0.246149,85314.0,85313.0,0.12694496]
[1743152716475,0.246149,85314.0,85313.0,0.2412026]
[1743152716853,0.234428,85314.0,85313.0,0.2402026]
[1743152717211,0.246149,85314.0,85313.0,0.2402026]
[1743152718407,0.234428,85314.0,85313.0,0.2402026]
[1743152718871,0.246149,85314.0,85313.0,0.2412026]
[1743152719828,0.234428,85314.0,85313.0,0.2412026]
[1743152720234,0.0003382,85319.0,85313.0,0.2529236]
[1743152720440,0.0003382,85319.0,85314.0,0.11425764]
[1743152720441,0.01172,85318.0,85314.0,0.11425764]
[1743152720641,0.234419,85317.0,85314.0,0.11425764]
[1743152720999,0.234425,85315.0,85314.0,0.11425764]
[1743152721228,0.246146,85315.0,85314.0,0.24797764]
[1743152721376,0.27431042,85315.0,85314.0,0.11425764]
[1743152721779,0.246146,85315.0,85314.0,0.11425764]
[1743152722679,0.246146,85315.0,85314.0,0.11725764]
[1743152723258,0.246146,85315.0,85314.0,0.11925764]
[1743152724174,0.246146,85315.0,85314.0,0.005]
[1743152724926,0.628146,85315.0,85314.0,0.005]
[1743152725221,0.546149,85314.0,85313.0,9.6e-07]
[1743152726253,0.546157,85311.0,85310.0,6e-08]
[1743152726414,0.546157,85311.0,85310.0,0.00044562]
[1743152727800,0.546157,85311.0,85310.0,0.00144562]
[1743152728006,0.66041464,85311.0,85310.0,0.00144562]
[1743152729178,0.66041464,85311.0,85310.0,0.20144562]
[1743152730608,0.66041464,85311.0,85310.0,0.20044562]
[1743152732062,0.68417851,85311.0,85310.0,0.20044562]
[1743152736610,0.546184,85302.0,85301.0,0.002]
[1743152736801,0.6500376,85302.0,85301.0,0.002]
[1743152737737,0.66206809,85302.0,85301.0,0.002]
[1743152738230,0.66206809,85302.0,85301.0,0.003]
[1743152738377,0.66206809,85302.0,85301.0,0.004]
[1743152739435,0.55821449,85302.0,85301.0,0.004]
[1743152743028,0.58013886,85302.0,85301.0,0.004]
[1743152744950,0.55821449,85302.0,85301.0,0.004]
[1743152745151,0.64001449,85302.0,85301.0,0.004]
[1743152746746,0.546184,85302.0,85301.0,0.004]
[1743152750151,0.246184,85302.0,85301.0,0.004]
[1743152750385,0.246184,85302.0,85301.0,0.0041691]
[1743152750758,0.34466849,85302.0,85301.0,0.0041691]
[1743152750960,0.246184,85302.0,85301.0,0.0041691]
[1743152766396,0.00078176,85311.0,85309.0,0.246163]
[1743152766601,0.00078176,85311.0,85306.0,0.246172]
[1743152766602,0.00078176,85311.0,85308.0,0.234443]
[1743152766715,0.2464982,85310.0,85309.0,0.11425764]
[1743152767749,0.2464982,85310.0,85309.0,0.11725764]
[1743152768382,0.2347772,85310.0,85309.0,0.11725764]
[1743152768585,0.0003382,85310.0,85309.0,0.12025764]
[1743152769129,0.2464982,85310.0,85309.0,0.12025764]
[1743152769693,0.2464982,85310.0,85309.0,0.25385764]
[1743152771790,0.2464982,85310.0,85309.0,0.81185764]
[1743152779766,0.0003382,85310.0,85309.0,1.20146149]
[1743152779967,0.0003382,85310.0,85309.0,1.23800283]
[1743152781100,0.0003382,85310.0,85309.0,1.23200283]
[1743152784082,0.0003382,85310.0,85309.0,1.24400283]
[1743152787229,0.0003382,85310.0,85309.0,1.24417193]
[1743152789163,0.0003382,85310.0,85309.0,1.11057193]
[1743152789368,0.0003382,85310.0,85309.0,1.07403059]
[1743152789578,0.2464982,85310.0,85309.0,0.81798674]
[1743152790790,0.2464982,85310.0,85309.0,0.81198674]
[1743152791221,0.2464982,85310.0,85309.0,0.5631691]
[1743152791411,0.2464982,85310.0,85309.0,0.5681691]
[1743152793505,0.2464982,85310.0,85309.0,0.68242674]
[1743152794273,0.4204995,85310.0,85309.0,0.5681691]
[1743152794477,0.3230982,85310.0,85309.0,0.5631691]
[1743152794844,0.2464982,85310.0,85309.0,0.5621691]
[1743152795100,0.2464982,85310.0,85309.0,0.67642674]
[1743152795248,0.2464982,85310.0,85309.0,0.68142674]
[1743152795873,0.2464982,85310.0,85309.0,0.67642674]
[1743152796074,0.2464982,85310.0,85309.0,0.67242674]
[1743152796512,0.2464982,85310.0,85309.0,0.67642674]
[1743152796724,0.2464982,85310.0,85309.0,0.5621691]
[1743152798137,0.2464982,85310.0,85309.0,0.5661691]
[1743152798519,0.2464982,85310.0,85309.0,0.5581691]
[1743152798895,0.2464982,85310.0,85309.0,0.5611691]
[1743152799540,0.2464982,85310.0,85309.0,0.5591691]
[1743152799763,0.2464982,85310.0,85309.0,0.5601691]
[1743152800562,0.34563955,85310.0,85309.0,0.5601691]
[1743152802926,0.42333955,85310.0,85309.0,0.5601691]
[1743152804779,0.44736455,85310.0,85309.0,0.5601691]
[1743152805956,0.74736455,85310.0,85309.0,1e-07]
[1743152806995,0.327384,85302.0,85301.0,0.0021691]
[1743152808960,0.327384,85302.0,85301.0,0.0031691]
[1743152809385,0.327384,85302.0,85301.0,0.0041691]
[1743152813205,0.32720668,85302.0,85301.0,0.0041691]
[1743152814082,0.24600668,85302.0,85301.0,0.0041691]
[1743152816637,0.34328815,85302.0,85301.0,0.0041691]
[1743152818862,0.24600668,85302.0,85301.0,0.0041691]
[1743152836708,0.24634488,85302.0,85301.0,0.0041691]
[1743152837261,0.2465222,85302.0,85301.0,0.0041691]
[1743152839244,0.2465222,85302.0,85301.0,0.01565929]
[1743152839447,0.2465222,85302.0,85301.0,0.0041691]
[1743152839763,0.2465222,85302.0,85296.0,0.0744691]
[1743152839764,0.234474,85297.0,85296.0,0.0744691]
[1743152840109,0.234474,85297.0,85296.0,0.18872674]
[1743152840991,0.246197,85297.0,85296.0,0.19072674]
[1743152841166,0.246197,85297.0,85296.0,0.19272674]
[1743152841379,0.246197,85297.0,85296.0,0.11825764]
[1743152841943,0.246197,85297.0,85296.0,0.25173764]
[1743152846022,0.24420693,85297.0,85296.0,0.13748]
[1743152846224,0.25797963,85297.0,85296.0,0.004]
[1743152846423,0.24420693,85297.0,85296.0,0.004]
[1743152850184,0.24420693,85297.0,85296.0,0.0041691]
[1743152862505,0.24454513,85297.0,85296.0,0.0041691]
[1743152866078,0.0003382,85297.0,85296.0,0.11842674]
[1743152866284,0.2465352,85297.0,85296.0,0.2885282]
[1743152868744,0.0003382,85297.0,85296.0,0.3002512]
[1743152868985,0.0003382,85297.0,85296.0,0.5800282]
[1743152869820,0.0003382,85297.0,85296.0,0.5780282]
[1743152870018,0.0003382,85297.0,85296.0,0.59868838]
[1743152870235,0.0003382,85297.0,85296.0,0.68018838]
[1743152870777,0.0003382,85297.0,85296.0,0.98018838]
[1743152871067,0.0003382,85297.0,85296.0,1.08982838]
[1743152871298,0.0003382,85297.0,85296.0,1.12007498]
[1743152872218,0.0003382,85297.0,85296.0,1.11707498]
[1743152872344,0.0003382,85297.0,85296.0,1.11307498]
[1743152872545,0.0003382,85297.0,85296.0,1.00043498]
[1743152872774,0.0003382,85297.0,85296.0,1.00543498]
[1743152873881,0.0003382,85297.0,85296.0,1.00643498]
[1743152874287,0.0003382,85297.0,85296.0,0.98918838]
[1743152874486,0.0003382,85297.0,85296.0,0.98318838]
[1743152874728,0.0003382,85297.0,85296.0,0.84974838]
[1743152874850,0.0003382,85297.0,85296.0,0.60354838]
[1743152875053,0.0003382,85297.0,85296.0,0.97146538]
[1743152875673,0.0013382,85297.0,85296.0,0.97646538]
[1743152876232,0.0013382,85297.0,85296.0,0.98818838]
[1743152877822,0.0013382,85297.0,85296.0,0.98814838]
[1743152881378,0.2475352,85297.0,85296.0,0.26494607]
[1743152881575,0.3239352,85297.0,85296.0,0.1445691]
[1743152882590,0.3229352,85297.0,85296.0,0.1395691]
[1743152882998,0.3229352,85297.0,85296.0,0.1335691]
[1743152883404,0.3229352,85297.0,85296.0,0.1415691]
[1743152885614,0.3229352,85297.0,85296.0,0.1375691]
[1743152885779,0.2465352,85297.0,85296.0,0.1375691]
[1743152885983,0.2465352,85297.0,85296.0,0.1415691]
[1743152886234,0.2348122,85297.0,85296.0,0.12242674]
[1743152886437,0.0003382,85297.0,85296.0,0.49030374]
[1743152886839,0.0003382,85297.0,85296.0,0.25182674]
[1743152887017,0.0003382,85297.0,85296.0,0.48930374]
[1743152887980,0.0003382,85297.0,85296.0,0.25482674]
[1743152888131,0.2348122,85297.0,85296.0,0.25482674]
[1743152888331,0.0003382,85297.0,85296.0,0.48930374]
[1743152888510,0.0003382,85297.0,85296.0,0.50102674]
[1743152889360,0.2348122,85297.0,85296.0,0.25482674]
[1743152889567,0.0003382,85297.0,85296.0,0.25482674]
[1743152889768,0.0003382,85297.0,85296.0,0.48930374]
[1743152891207,0.0003382,85297.0,85296.0,0.81282674]
[1743152891407,0.0003382,85297.0,85296.0,1.04730374]
[1743152891914,0.0003382,85297.0,85296.0,0.81282674]
[1743152892413,0.0003382,85297.0,85296.0,1.04730374]
[1743152893319,0.0003382,85297.0,85296.0,1.05902674]
[1743152894819,0.0003382,85297.0,85296.0,1.04730374]
[1743152895047,0.2465352,85297.0,85296.0,0.67942674]
[1743152895180,0.2465352,85297.0,85296.0,0.81282674]
[1743152895363,0.0003382,85297.0,85296.0,1.04730374]
[1743152897190,0.0003382,85297.0,85296.0,1.13944459]
[1743152897563,0.0003382,85297.0,85296.0,1.18772772]
[1743152898428,0.0003382,85297.0,85296.0,1.24374645]
[1743152898789,0.0003382,85297.0,85296.0,1.54374645]
[1743152899187,0.0003382,85297.0,85296.0,2.68143445]
[1743152899605,0.0013382,85297.0,85296.0,2.50876045]
[1743152899729,0.0013382,85297.0,85296.0,2.16946245]
[1743152899935,0.0013382,85297.0,85296.0,2.03683445]
[1743152900157,0.0013382,85297.0,85296.0,2.05988157]
[1743152900599,0.0013382,85297.0,85296.0,2.06861584]
[1743152900805,0.0013382,85297.0,85296.0,2.06261584]
[1743152901002,0.0003382,85297.0,85296.0,2.05761584]
[1743152901238,0.0003382,85297.0,85296.0,1.58052784]
[1743152901602,0.0003382,85297.0,85296.0,1.93783684]
[1743152902012,0.0003382,85302.0,85301.0,0.246186]
[1743152902210,0.0003382,85302.0,85301.0,1.78482762]
[1743152902413,0.0003382,85302.0,85301.0,1.31890062]
[1743152902731,0.0003382,85302.0,85301.0,1.45230062]
[1743152903347,0.0003382,85302.0,85301.0,1.45730062]
[1743152904326,0.0003382,85302.0,85301.0,1.23578362]
[1743152904526,0.0003382,85302.0,85301.0,1.24178362]
[1743152904725,0.0003382,85302.0,85301.0,0.98664462]
[1743152905769,0.0003382,85302.0,85301.0,1.30730162]
[1743152907282,0.0003382,85302.0,85301.0,1.25290562]
[1743152909630,0.0003382,85302.0,85301.0,0.98664462]
[1743152909837,0.0003382,85302.0,85301.0,1.54984262]
[1743152911883,0.0003382,85302.0,85301.0,1.55453762]
[1743152914213,0.0003382,85302.0,85301.0,1.5478695]
[1743152914821,0.0003382,85302.0,85301.0,1.55880977]
[1743152915011,0.00078176,85311.0,85308.0,0.546166]
[1743152915211,0.00078176,85311.0,85308.0,0.71152462]
[1743152916071,0.0795,85347.0,85315.0,0.0828]
[1743152916277,0.00040056,85332.0,85331.0,0.67489849]
[1743152916467,0.00040056,85332.0,85331.0,1.36609849]
[1743152916664,0.00040056,85332.0,85331.0,1.40250808]
[1743152917563,0.00040056,85332.0,85331.0,1.37209849]
[1743152918256,0.00040056,85332.0,85331.0,1.38698135]
[1743152918468,0.00040056,85332.0,85331.0,1.98049035]
[1743152918664,0.00040056,85332.0,85331.0,2.01687777]
[1743152918923,0.00040056,85332.0,85331.0,2.0283853]
[1743152919665,0.00040056,85332.0,85331.0,1.8904493]
[1743152919898,0.00040056,85332.0,85331.0,1.4584713]
[1743152920693,0.00040056,85332.0,85331.0,1.6941303]
[1743152921901,0.00040056,85332.0,85331.0,1.4584713]
[1743152922493,0.00040056,85332.0,85331.0,1.45703405]
[1743152922935,0.00040056,85332.0,85331.0,1.89884305]
[1743152923135,0.00040056,85332.0,85331.0,1.63672005]
[1743152923333,0.00040056,85332.0,85331.0,1.57608005]
[1743152925318,0.00040056,85332.0,85331.0,1.57600005]
[1743152926012,0.00040056,85332.0,85331.0,1.45695405]
[1743152927588,0.00040056,85332.0,85331.0,1.49332796]
[1743152929437,0.00040056,85332.0,85331.0,1.45837779]
[1743152930413,0.00040056,85332.0,85331.0,1.32509779]
[1743152930630,0.00040056,85332.0,85331.0,1.45837779]
[1743152930854,0.00040056,85332.0,85331.0,0.69560517]
[1743152931064,0.00040056,85332.0,85331.0,1.07498517]
[1743152931260,0.00040056,85332.0,85331.0,1.08952602]
[1743152931679,0.00040056,85332.0,85331.0,0.99125323]
[1743152931899,0.00040056,85332.0,85331.0,1.12453323]
[1743152932865,0.00040056,85332.0,85331.0,1.11853323]
[1743152933075,0.00040056,85332.0,85331.0,1.12353323]
[1743152933281,0.00040056,85332.0,85331.0,1.1264807]
[1743152933727,0.00040056,85332.0,85331.0,1.1314807]
[1743152934699,0.00040056,85332.0,85331.0,1.16794441]
[1743152939549,0.00040056,85332.0,85331.0,1.1329372]
[1743152939929,0.07940056,85332.0,85331.0,1.1329372]
[1743152940156,0.07940056,85332.0,85331.0,0.99070973]
[1743152940359,0.07940056,85332.0,85331.0,0.74460973]
[1743152940562,0.09111856,85332.0,85331.0,0.71856135]
[1743152940744,0.37139656,85332.0,85331.0,0.81537764]
[1743152940935,0.73089792,85332.0,85331.0,0.68209764]
[1743152941339,0.67139656,85332.0,85331.0,0.56784]
[1743152941538,0.67139656,85332.0,85331.0,0.55784]
[1743152941963,0.67139656,85332.0,85331.0,0.56784]
[1743152943436,0.67139656,85332.0,85331.0,0.56284]
[1743152943859,0.67139656,85332.0,85331.0,0.56584]
[1743152944154,0.67139656,85332.0,85331.0,0.56084]
[1743152944801,0.67139656,85332.0,85331.0,0.55984]
[1743152945210,0.67139656,85332.0,85331.0,0.55784]
[1743152946021,0.7856542,85332.0,85331.0,0.55784]
[1743152947631,0.67139656,85332.0,85331.0,0.55784]
[1743152950301,0.368431,85320.0,85319.0,0.000169]
[1743152951547,0.368431,85320.0,85319.0,0.003169]
[1743152951673,0.368431,85320.0,85319.0,0.006169]
[1743152952984,0.4779394,85320.0,85319.0,0.006169]
[1743152953892,0.4779394,85320.0,85319.0,0.000169]
[1743152954094,0.7779394,85320.0,85319.0,0.001169]
[1743152954717,0.80199998,85320.0,85319.0,0.000169]
[1743152954897,0.80299998,85320.0,85319.0,0.000169]
[1743152955099,0.376163,85309.0,85308.0,0.5578]
[1743152963754,0.246195,85298.0,85297.0,0.0001691]
[1743152963971,0.246195,85298.0,85296.0,0.0001691]
[1743152963972,0.246197,85297.0,85296.0,2e-07]
[1743152964951,0.24629046,85297.0,85296.0,2e-07]
[1743152965583,0.24729046,85297.0,85296.0,2e-07]
[1743152965791,0.3615481,85297.0,85296.0,2e-07]
[1743152967594,0.3635481,85297.0,85296.0,2e-07]
[1743152967815,0.3625481,85297.0,85296.0,2e-07]
[1743152968016,0.7802481,85297.0,85296.0,2e-07]
[1743152968233,0.7822481,85297.0,85296.0,2e-07]
[1743152968447,0.66799046,85297.0,85296.0,2e-07]
[1743152969067,0.6915893,85297.0,85296.0,2e-07]
[1743152976674,0.6919275,85297.0,85296.0,2e-07]
[1743152982811,0.6919275,85297.0,85296.0,0.03512698]
[1743152994293,0.66832866,85297.0,85296.0,0.03512698]
[1743152994499,0.25062866,85297.0,85296.0,0.03512698]
[1743152994846,0.25062866,85297.0,85296.0,0.05273218]
[1743152995701,0.24862866,85297.0,85296.0,0.05273218]
[1743152996125,0.24662866,85297.0,85296.0,0.05273218]
[1743152997796,0.34631574,85297.0,85296.0,0.05273218]
[1743152998445,0.24662866,85297.0,85296.0,0.03512698]
[1743153002295,0.32282866,85297.0,85296.0,0.03512698]
[1743153002496,0.37182866,85297.0,85296.0,0.03512698]
[1743153003638,0.24662866,85297.0,85296.0,0.03512698]
[1743153006131,0.66432866,85297.0,85296.0,0.03512698]
[1743153006461,0.7785863,85297.0,85296.0,0.03512698]
[1743153007632,1.0785863,85297.0,85296.0,9.8e-07]
[1743153007916,1.2095863,85297.0,85296.0,9.8e-07]
[1743153008127,0.546223,85288.0,85287.0,5e-07]
[1743153008299,0.546241,85282.0,85281.0,6.2e-07]
[1743153008748,0.55823453,85282.0,85281.0,6.2e-07]
[1743153009477,0.246253,85278.0,85271.0,0.002]
[1743153009687,1.07821064,85278.0,85271.0,0.002]
[1743153010153,0.963953,85278.0,85271.0,0.002]
[1743153012132,0.963953,85278.0,85277.0,0.56112]
[1743153013216,0.963953,85278.0,85277.0,0.5612891]
[1743153014238,0.963953,85278.0,85277.0,0.5602891]
[1743153014572,0.963953,85278.0,85277.0,0.5612891]
[1743153014801,0.963953,85278.0,85277.0,0.0031691]
[1743153014802,1.15511064,85278.0,85277.0,0.0031691]
[1743153015011,1.15511064,85278.0,85274.0,4e-07]
[1743153015012,0.311726,85275.0,85274.0,4e-07]
[1743153015214,0.546261,85275.0,85274.0,4e-07]
[1743153015328,0.66051864,85275.0,85274.0,4e-07]
[1743153017474,0.66051864,85275.0,85274.0,4e-07]
[1743153017675,0.549261,85275.0,85274.0,4e-07]
[1743153018461,0.552261,85275.0,85274.0,4e-07]
[1743153026787,0.66651864,85275.0,85274.0,4e-07]
[1743153026963,0.74421864,85275.0,85274.0,4e-07]
[1743153029479,1.16191864,85275.0,85274.0,4e-07]
[1743153029681,1.27617628,85275.0,85274.0,4e-07]
[1743153036539,0.54627,85272.0,85271.0,4e-07]
[1743153036740,0.66052764,85272.0,85271.0,4e-07]
[1743153037565,1.16582764,85272.0,85271.0,4e-07]
[1743153037790,1.28208528,85272.0,85271.0,4e-07]
[1743153038607,1.28008528,85272.0,85271.0,4e-07]
[1743153039024,1.28508528,85272.0,85271.0,4e-07]
[1743153039760,1.28708528,85272.0,85271.0,4e-07]
[1743153039969,0.246316,85256.0,85255.0,0.0001691]
[1743153040150,0.9893224,85256.0,85255.0,0.0001691]
[1743153041232,0.9893224,85256.0,85255.0,0.00061266]
[1743153044036,1.01239939,85256.0,85255.0,0.00061266]